Cogmind - Beta 17 @@@ ROGUE MODE // 2026.07.28 @ 20:34:25 Player: Afro Result: Destroyed by S-10 Pest with Light Assault Rifle Performance ------------- Evolutions (1) 500 Regions Visited (3) 600 Robots Destroyed (38) 190 Value Destroyed (945) 945 Prototype IDs (0) 0 Alien Tech Used (0) 0 Bonus (0) 0 TOTAL SCORE: 2235 Bonus ------- None Cogmind --------- Core Integrity 0/400 Matter 252/300 Energy 265/265 System Corruption 0% Temperature Cool (6) Movement Walking (190) Ox1 Location -9/Storage Parts ------- > --- POWER (1) -------- Improved Ion Engine > --- PROPULSION (3) --- Aluminum Leg Aluminum Leg Aluminum Leg > --- UTILITY (2) ------ Large Storage Unit Melee Analysis Suite > --- WEAPON (3) ------- EM Shotgun Autogun Katana > --- INVENTORY (15) --- Ion Engine Ion Engine Improved Ion Engine Improved Ion Engine Improved Treads Improved Treads Improved Treads Improved Treads Improved Heat Sink Sensor Array Improved Terrain Scanner Light Armor Plating Hacking Suite Drone Bay (2/2) Drone Bay (2/2) Peak State ------------ > --- POWER ------------ Improved Ion Engine > --- PROPULSION ------- Aluminum Leg Aluminum Leg Aluminum Leg > --- UTILITY ---------- Large Storage Unit Melee Analysis Suite > --- WEAPON ----------- Heavy Assault Rifle Autogun Katana > --- INVENTORY -------- Ion Engine Ion Engine Improved Ion Engine Improved Ion Engine Light Treads Aluminum Leg Aluminum Leg Improved Aluminum Leg Improved Heat Sink Sensor Array Improved Terrain Scanner Light Armor Plating Hacking Suite Drone Bay Drone Bay [Rating: 19] Favorites ----------- Power Ion Engine Engine Ion Engine Propulsion Aluminum Leg Treads Light Treads Leg Aluminum Leg Utility Large Storage Unit Device Improved Terrain Scanner Storage Large Storage Unit Processor Melee Analysis Suite Protection Light Armor Plating Weapon Light Assault Rifle Energy Gun Particle Gun Ballistic Gun Light Assault Rifle Slashing Weapon Katana Build | -11 -10 -9 -9 ------- Run | Yrd Mat Mat Sto Slots Evolved 2 | . . 2 . Power . | . . . . Propulsion 1 | . . 1 . Utility . | . . . . Weapon 1 | . . 1 . Parts Attached 42 | 8 6 10 18 Power 6 | 1 . 3 2 Engine 6 | 1 . 3 2 Core . | . . . . Reactor . | . . . . Propulsion 18 | 2 2 4 10 Treads 5 | 2 2 1 . Leg 13 | . . 3 10 Wheel . | . . . . Hover . | . . . . Flight . | . . . . Utility 6 | 3 1 1 1 Device 2 | 2 . . . Storage 2 | 1 1 . . Processor 1 | . . . 1 Hackware . | . . . . Protection 1 | . . 1 . Artifact . | . . . . Weapon 12 | 2 3 2 5 Energy Gun 2 | . . 1 1 Energy Cannon . | . . . . Ballistic Gun 9 | 2 3 1 3 Ballistic Cannon . | . . . . Launcher . | . . . . Special Weapon . | . . . . Impact Weapon . | . . . . Slashing Weapon 1 | . . . 1 Piercing Weapon . | . . . . Special Melee Weapon . | . . . . Unidentified Prototypes . | . . . . Parts Lost 2 | . . . 2 Power . | . . . . Propulsion . | . . . . Utility 1 | . . . 1 Weapon 1 | . . . 1 Highest Loss Streak 2 | . . . 2 To Critical Strikes . | . . . . Average Backups 12 | 2 10 13 14 Power 3 | . 3 2 3 Propulsion 4 | 1 4 5 4 Utility 4 | . 2 3 6 Weapon . | . 1 1 . Tool/Special . | . . . . Unused Backups 20 | . 1 . 19 Power 5 | . 1 . 4 Propulsion 9 | . . . 9 Utility 6 | . . . 6 Weapon . | . . . . Tool/Special . | . . . . Average Slot Usage (%) 99 | . 100 92 99 Engine 12 | . 14 11 11 Treads 10 | . 28 12 . Leg 20 | . . 16 32 Device 5 | . 14 3 . Storage 12 | . 14 11 11 Processor 5 | . . . 8 Protection 1 | . . 7 1 Energy Gun 2 | . . 7 3 Ballistic Gun 23 | . 28 22 20 Slashing Weapon 5 | . . . 8 Peak Build Rating 19 | 9 10 12 19 Average Rating 13 | 6 9 11 17 On Entrance 7 | . 9 10 12 Avg Prop Armor Cover (%) 6 | . . . 6 Naked Turns . | . . . . Heaviest Build 35 | 15 28 33 35 Greatest Support 60 | 40 40 60 30 Greatest Overweight (x) 1 | . . 1 1 Average Overweight (x) . | . . . 1 Largest Inventory Capacity 15 | 8 15 15 15 Average Capacity 13 | 7 12 15 15 Most Carried 15 | 4 15 15 15 Average Carried 12 | 2 11 13 14 Final Capacity 15 | 8 15 15 15 Final Carried 15 | 4 15 14 15 Class Distribution -------------------- 47% | Mutant 38% | Scavenger-Mutant 12% | Scavenger-Tank Dominant Class ---------------- Mutant | -10/Materials Scavenger-Tank | -9/Materials Scavenger-Mutant | -9/Storage Resources | -11 -10 -9 -9 ----------- Run | Yrd Mat Mat Sto Matter Collected 1235 | 329 283 113 510 Remotely . | . . . . Salvage Created 1508 | 139 404 158 807 Parts 98 | 8 28 10 52 Haulers Intercepted 1 | . . . 1 Recyclers Shooed 3 | . 1 . 2 Parts Field Recycled . | . . . . Retrieved Matter . | . . . . Parts Self-Destructed . | . . . . Prevented . | . . . . Parts Restored . | . . . . Kills | -11 -10 -9 -9 ------- Run | Yrd Mat Mat Sto Combat Hostiles Destroyed 25 | . 9 2 14 Guns 25 | . 9 2 14 Classes Destroyed 11 | 2 3 1 5 Worker 1 | . . . 1 Builder 1 | . 1 . . Tunneler 3 | 3 . . . Hauler 1 | . . . 1 Recycler 4 | 1 1 1 1 Mechanic 1 | . . . 1 Operator 2 | . . . 2 Swarmer 4 | . 3 . 1 Grunt 16 | . 6 1 9 Duelist 1 | . . 1 . Sentry 4 | . . . 4 Best Kill Streak 5 | 2 3 3 5 Combat Bots Only 4 | . 2 2 4 Max Kills in Single Turn 1 | 1 1 1 1 Gunslinging . | . . . . Exploded . | . . . . Melee . | . . . . Uniques/NPCs Destroyed . | . . . . Combat | -11 -10 -9 -9 -------- Run | Yrd Mat Mat Sto Hostile Shots Fired 177 | . 62 15 100 Missed 36 | . 15 3 18 Hits 141 | . 47 12 82 Melee 5 | . . 5 . Projectile 136 | . 47 7 82 Critical Strikes 6 | . 1 2 3 Damage Taken 1851 | . 532 245 1074 Core 516 | . 110 112 294 Absorbed by Shields . | . . . . Core Remaining (%) 78 | 100 56 . . Volleys Fired 132 | 16 41 6 69 Largest 3 | 2 2 3 3 Hottest 105 | 40 40 105 105 Shots Fired 279 | 32 82 16 149 Gun 279 | 32 82 16 149 Cannon . | . . . . Launcher . | . . . . Special . | . . . . Kinetic 247 | 32 82 13 120 Thermal 29 | . . 3 26 Explosive . | . . . . Electromagnetic 3 | . . . 3 Robot Hit Streak 27 | 4 15 15 27 Robot Miss Streak 5 | 2 4 1 5 Penetration Max . | . . . . Secondary Targets 3 | . 1 . 2 Max Gunslinging Chain 1 | . 1 . 1 Shots Hit Robots 193 | 19 54 15 105 Core Hits 70 | 5 19 9 37 Critical Kills 2 | 1 1 . . Critical Parts Destroyed 1 | . . . 1 Critical Strikes 3 | 1 1 . 1 Destroy 3 | 1 1 . 1 Melee Attacks 4 | . . . 4 Impact . | . . . . Slashing 4 | . . . 4 Piercing . | . . . . Sneak Attacks 3 | . . . 3 Combat Hostiles . | . . . . Follow-up Attacks . | . . . . Damage Inflicted 2448 | 234 572 131 1511 Guns 2191 | 234 572 131 1254 Cannons . | . . . . Explosions . | . . . . Melee 257 | . . . 257 Ramming . | . . . . Kinetic 1918 | 234 572 87 1025 Thermal 257 | . . 44 213 Explosive . | . . . . Electromagnetic 16 | . . . 16 Impact . | . . . . Slashing 257 | . . . 257 Piercing . | . . . . Highest Corruption . | . . . . Average Corruption . | . . . . Corruption Purged . | . . . . Corruption Blocked . | . . . . Overload Shots . | . . . . Overflow Damage . | . . . . Projectiles . | . . . . Explosions . | . . . . Melee . | . . . . Knockbacks . | . . . . Impact . | . . . . Kinetic . | . . . . Secondary . | . . . . Self-Inflicted Damage . | . . . . Shots . | . . . . Rammed . | . . . . Targets Rammed . | . . . . Kicked . | . . . . Crushed . | . . . . Highest Temperature 453 | . 37 141 453 Average Temperature 169 | . 13 61 203 Received Heat Transfer 744 | . 234 39 471 Effects 12 | . . . 12 Shutdowns 4 | . . . 4 Interference 3 | . . . 3 Matter Decay 2 | . . . 2 Short Circuit 3 | . . . 3 Siege Activations . | . . . . Martial Activations . | . . . . Shielding Activations . | . . . . Robots Disrupted . | . . . . Combat Hostiles . | . . . . Robots Corrupted . | . . . . Combat Hostiles . | . . . . Parts Fried . | . . . . Impact Corruptions . | . . . . Robots Melted . | . . . . Combat Hostiles . | . . . . Parts Melted . | . . . . Heat Transferred 629 | . . 111 518 Parts Sabotaged . | . . . . Parts Stolen . | . . . . Parts Stripped . | . . . . Power Chain Reactions . | . . . . Alert | -11 -10 -9 -9 ------- Run | Yrd Mat Mat Sto Maximum Alert Level . | . . . . Low Security (%) 100 | 100 100 100 100 Level 1 . | . . . . Level 2 . | . . . . Level 3 . | . . . . Level 4 . | . . . . Level 5 . | . . . . High Security . | . . . . Max Security . | . . . . Peak Influence 123 | 10 76 55 123 Initial . | . . . . Average 28 | . 27 19 37 Influence Increases 808 | 20 286 55 447 Destroy 0b10 Robot/C 500 | . 180 40 280 Destroy 0b10 Robot/NC 65 | 20 10 5 30 Destroy Leader 152 | . 50 10 92 Successful Hack 13 | . . . 13 Disable Machine 15 | . . . 15 Destroy Structure 3 | . 1 . 2 Partial Spotted 15 | . . . 15 Lose Combat Pursuer 45 | . 45 . . Influence Decreases 763 | 20 286 55 402 Time Decay 743 | 20 286 55 382 Lost Part 20 | . . . 20 Squads Dispatched 6 | . 2 . 4 Investigation 2 | . . . 2 Extermination . | . . . . Reinforcement 4 | . 2 . 2 Assault . | . . . . Garrison . | . . . . Intercept . | . . . . Searches Triggered . | . . . . Construction Impeded . | . . . . Haulers Reinforced . | . . . . Active Scanning Responses . | . . . . Cargo Convoy Interrupts . | . . . . Stealth | -11 -10 -9 -9 --------- Run | Yrd Mat Mat Sto Distress Signals 4 | . 2 . 2 Communications Jammed . | . . . . Distress Signals . | . . . . Times Spotted 44 | . 19 4 21 Peak Tracking Total 4 | . 4 2 4 Tactical Retreats 2 | . 2 . . Traps | -11 -10 -9 -9 ------- Run | Yrd Mat Mat Sto Traps Triggered 1 | . . . 1 Indirectly . | . . . . Trap Hack Attempts . | . . . . Triggered . | . . . . Disarmed . | . . . . Reprogrammed . | . . . . Reused . | . . . . Traps Extracted . | . . . . Installed . | . . . . Triggered . | . . . . Machines | -11 -10 -9 -9 ---------- Run | Yrd Mat Mat Sto Machines Disabled 1 | . . . 1 Max in Single Turn 1 | . . . 1 Machines Repaired . | . . . . Machines Dismantled . | . . . . Machines Sabotaged . | . . . . Overloaded Fab Kills . | . . . . Hacking | -11 -10 -9 -9 --------- Run | Yrd Mat Mat Sto Machines Accessed 8 | . 2 . 6 Terminals 6 | . . . 6 Fabricators . | . . . . Repair Stations 1 | . 1 . . Recycling Units 1 | . 1 . . Scanalyzers . | . . . . Garrison Access . | . . . . Total Hacks 16 | . 3 . 13 Successful 7 | . 2 . 5 Failed 9 | . 1 . 8 Catastrophic 1 | . . . 1 Database Lockouts . | . . . . Manual 3 | . . . 3 Terminals 13 | . . . 13 Fabricators . | . . . . Repair Stations 2 | . 2 . . Recycling Units 1 | . 1 . . Scanalyzers . | . . . . Garrison Access . | . . . . Terminal Hacks 5 | . . . 5 Record 1 | . . . 1 Open Door 2 | . . . 2 Scanalyzer Index 1 | . . . 1 Zone Layout 1 | . . . 1 Fabricator Hacks . | . . . . Repair Station Hacks 1 | . 1 . . Scan Component 1 | . 1 . . Recycling Unit Hacks 1 | . 1 . . Report Inventory 1 | . 1 . . Scanalyzer . | . . . . Garrison Access Hacks . | . . . . Unauthorized Hacks . | . . . . Terminals . | . . . . Fabricators . | . . . . Repair Stations . | . . . . Recycling Units . | . . . . Scanalyzers . | . . . . Garrison Access . | . . . . Data Cores Recovered 1 | . . . 1 Used . | . . . . Hacking Detections 5 | . 1 . 4 Full Trace Events 2 | . . . 2 Feedback Events . | . . . . Feedback Blocked . | . . . . Robot Schematics Acquired . | . . . . Robots Built . | . . . . Authchips . | . . . . Time . | . . . . Total Robot Build Rating . | . . . . Part Schematics Acquired . | . . . . Parts Built . | . . . . Authchips . | . . . . Time . | . . . . Total Part Build Rating . | . . . . Part Studies Acquired . | . . . . Parts Repaired . | . . . . Time . | . . . . Parts Recycled . | . . . . Recycled Matter . | . . . . Retrieved Matter . | . . . . Retrieved Components . | . . . . Parts Scanalyzed . | . . . . Part Schematics Acquired . | . . . . Parts Damaged . | . . . . Bothacking | -11 -10 -9 -9 ------------ Run | Yrd Mat Mat Sto Used RIF Installer . | . . . . Robots Hacked . | . . . . Non-combat . | . . . . Combat . | . . . . Robot Hacks Applied . | . . . . Relay Couplers Released . | . . . . Fabnet Peak Effective % . | . . . . Robots Rewired . | . . . . Allies Hacked . | . . . . Hacks Repelled . | . . . . Allies | -11 -10 -9 -9 -------- Run | Yrd Mat Mat Sto Total Allies . | . . . . Largest Group . | . . . . Highest-Rated Group . | . . . . Highest-Rated Ally . | . . . . Total Orders . | . . . . Ally Attacks . | . . . . Total Damage . | . . . . Kills . | . . . . Allies Corrupted . | . . . . Allies Melted . | . . . . Intel | -11 -10 -9 -9 ------- Run | Yrd Mat Mat Sto Active Infowar (turns) 969 | 158 772 39 . Terrain 876 | 65 772 39 . Seismic 93 | 93 . . . Robot Analysis Total . | . . . . Derelict Logs Recovered . | . . . . Drone Launches . | . . . . Drone Recoveries . | . . . . Exploration | -11 -10 -9 -9 ------------- Run | Yrd Mat Mat Sto Turns Passed 2528 | 291 772 173 1292 Spaces Moved 1122 | 145 369 77 531 Core 4 | 4 . . . Treads 539 | 141 369 29 . Legs 579 | . . 48 531 Wheels . | . . . . Hover . | . . . . Flight . | . . . . Fastest Speed 50 | 50 160 160 190 Average Speed 175 | 156 160 178 190 Slowest Speed 190 | 160 160 190 190 Overloaded Moves . | . . . . Propulsion Burnouts . | . . . . Robots Hopped . | . . . . Potential Cave-ins . | . . . . Cave-ins Triggered . | . . . . Exploration Rate (%) 29 | 6 52 8 53 Regions Visited 3 Branch Regions 1 Pre-discovered Areas . | . . . . Known Exits Taken . | . . . . Unknown Exits Taken 3 | 1 1 1 . Scrap Searched . | . . . . Spaces Dug . | . . . . Terrain Destroyed . | . . . . Melee . | . . . . Projectile . | . . . . AOE . | . . . . Terrain Rammed . | . . . . Walls Destroyed . | . . . . Machines Disabled . | . . . . Actions | -11 -10 -9 -9 --------- Run | Yrd Mat Mat Sto Total 1467 | 174 481 104 708 Wait 74 | . 42 . 32 Move 1119 | 144 368 76 531 Hop . | . . . . Pick Up 48 | 6 14 7 21 Fast Attach 6 | 5 . . 1 Attach 15 | 2 1 7 5 Detach . | . . . . Swap 24 | 1 6 3 14 Drop 45 | . 9 5 31 Fire 132 | 16 41 6 69 Melee 4 | . . . 4 Ram . | . . . . Kick . | . . . . Crush . | . . . . Escape Stasis . | . . . . Rewire . | . . . . Trap . | . . . . Miscellaneous . | . . . . Route ------- -11/Scrapyard -10/Materials (discovered 2 exits: [*Mat] / [*Min]) -9/Materials -9/Storage (discovered 1 exit: [*Rec]) History --------- Turn | Location | Event 19 | -11/Scrapyard | Discovered new exit (range 16) 292 | -11/Scrapyard | Entered Materials 312 | -10/Materials | Build established: Mutant 371 | -10/Materials | Discovered new exit (range 15) 1008 | -10/Materials | Discovered new exit (range 8) 1064 | -10/Materials | Entered another Materials area 1064 | -9/Materials | Evolved 2 slots: Propulsion x1, Weapon x1 1218 | -9/Materials | Discovered new exit (range 5) 1237 | -9/Materials | Entered Storage 1429 | -9/Storage | Build established: Scavenger-Tank 1450 | -9/Storage | Core integrity fell below 50% 1606 | -9/Storage | Core integrity fell below 20% 1738 | -9/Storage | Build established: Scavenger-Mutant 1939 | -9/Storage | Used back door to open Recycling access 1939 | -9/Storage | Discovered new exit (range 4) 2529 | -9/Storage | Destroyed by S-10 Pest with Light Assault Rifle Last Messages --------------- 02241_ Acquired Imp. Treads. 02246_ Acquired Lgt. Treads. 02248_ Acquired Imp. Treads. 02253_ Dropped Lgt. Treads. 02253_ Acquired Imp. Treads. 02259_ Dropped Aluminum Leg. 02316_ G-34 Mercenary destroyed. 02316_ Switching to secondary target: G-34 Mercenary. 02319_ G-34 Mercenary destroyed. 02332_ Acquired 45 matter. 02336_ Dropped Aluminum Leg. 02348_ Acquired 31 matter. 02353_ U-05 Engineer builds a Door. 02453_ Dropped Shotgun. 02453_ Acquired EM Shotgun. 02489_ K-01 Serf collects debris. 02512_ Acquired 4 matter. 02516_ W-16 Scout sends out distress signal. 02523_ S-10 Pest destroyed. Map ----- +----------------------------------------------------+ | ?????# = # # # """ ##="""=##?# ######## | | ?????#!!!!# # #[[ # """ ##! [ "#?# ######## | | ?????######## # # """ #="""= #?# # ! | | ????????????# # # """ ##=""" "#?# # | | ??########### #] # ##*""" ##?# # | | ??# ## #####+# """ ##[ #??# + | | ??# #/ #### # """ #####+##### #! | | ??# """" +% # """ # %%% # | | ??# ""??"*# ! !!+% # ##+##### | | ??# ""???" # ####%# # #???? | | ??# "???"" ## ###??#/# # ^ #???? | | ??# "??"" ## ######+######## ##### | | ??# """" + # # ^ = =##T | | ??# #### """ # **+== | | ??##########??# """ # %#[ | | ??????????????# """ # #####/#########+###+# | | ??????????????# + ## # ### | | ??????????????#"" """ # # [ # """" ### | | ??????????????#"T """ # ## #????"" #?? | | ??????????????#"" """ # ## """" # ????"" #?? | | ??????????????# # ## """" # "????" #?? | | ??????????????########## ## """" # ""??" #?? | | ???????????????????????## ###] """" # """" #?? | | ????????????????????????#s#?# # #?? | | ????????????????????????# #?# ###########?? | | ????????????????????????#@#?####"T"###???????????? | | ???????????????#????????#%#?????"""#?????????????? | | ???????????????# ??????#s#?????####?????????????? | | ???????????????# ?????# #??????????????????????? | | ???????????????# ##### #??????????????????????? | | ???????????????# #??????????????????????? | | ?????????????????# #??????????????????????? | | ?????????????????# #####+###??????????????? | | ??????????# ] + a a / #????????? | | ??????????# # #?????????????? | | ??????????? ??# !!] #?????????????? | | ???????????? ????+ !!] #?????????????? | | ?????????????????### !! *! #?????????????? | | ???????????????????# *! #?????????????? | | ???????????????????# ! #?????????????? | | ???????????????????# #?????????????? | | ??????????????????? #?????????????? | | ?????????????????? / ????????????? | | ????????????????? ##????????????? | | ???????????????? ########### ?????????????? | | ???????????????? ??????????? ?????????????? | | ?????????????????? ???????????????????????????? | | ?????????????????????????????????????????????????? | | ?????????????????????????????????????????????????? | | ?????????????????????????????????????????????????? | +----------------------------------------------------+ Best States ------------- Heat Dissipation 28 Energy Generation 12 Energy Capacity 265 Matter Stores 300 Matter Capacity 300 Sight Range 16 Terrain Scan Range 16 Terrain Scan Density 10 Armor Coverage 150 Evasion (%) 40 Melee Accuracy 5 Recoil Reduction 3 Item Schematics ----------------- None Robot Schematics ------------------ None Fabricated ------------ Nothing Repaired ---------- Nothing Studied --------- None Alien Tech Used ----------------- None Achievements -------------- None Challenges ------------ None Game ------ Seed ce7f54e8-c0b9-44b0-a348-b6e1 Manual? 1 Play Time 00:30:14 Cumulative 34.7 hours Start 2026.07.28 @ 20:02:14 End 2026.07.28 @ 20:34:25 Sessions 1 Manual Loads 0 Difficulty Rogue Special Mode None Game No. 37 Rogue 37 Adventurer 0 Explorer 0 Win Type - Total 0 Types 0/0/0/0/0/0/0/0/0/0 Lore% 6 Gallery% 20 Achievement% 17 Wizard Run 0 Options --------- Layout 1 ASCII 0 Keyboard 0 Movement Mouse Keybinds 0 Fullscreen 2 Font 24/Smallcaps Map View 50x35 Zoom Use 0% Tactical HUD 1 Map Filters NONE Filters NONE Steam 1 RUN: aebd332e-d232-4bc1-96ea-c55a13cfc5c2